[Event "Live Chess"]
[Site "Chess.com"]
[Date "2023.05.21"]
[Round "-"]
[White "Ed_Knox"]
[Black "Pablo_dmp"]
[Result "0-1"]
[WhiteElo "1477"]
[BlackElo "1858"]
[TimeControl "300"]
[EndTime "8:17:00 PDT"]
[Termination "Pablo_dmp won on time"]

1. d4 {[%clk 0:04:57.3]} 1... Nf6 {[%clk 0:04:48.1]} 2. Bf4 {[%clk 0:04:56.5]}
2... d5 {[%clk 0:04:46.5]} 3. e3 {[%clk 0:04:55.5]} 3... e6 {[%clk 0:04:45.2]}
4. Nf3 {[%clk 0:04:54.7]} 4... c5 {[%clk 0:04:44.4]} 5. Nc3 {[%clk 0:04:50.4]}
5... Nc6 {[%clk 0:04:43.5]} 6. Nb5 {[%clk 0:04:47.6]} 6... e5 {[%clk 0:04:27.3]}
7. dxe5 {[%clk 0:04:40]} 7... Nh5 {[%clk 0:04:25.7]} 8. Bg5 {[%clk 0:03:42.6]}
8... Be7 {[%clk 0:04:24]} 9. Bxe7 {[%clk 0:03:31.1]} 9... Qxe7 {[%clk
0:04:20.6]} 10. Nd6+ {[%clk 0:03:27.7]} 10... Kf8 {[%clk 0:04:13.3]} 11. Nxc8
{[%clk 0:03:11.4]} 11... Rxc8 {[%clk 0:04:09.8]} 12. Qxd5 {[%clk 0:02:56.7]}
12... Nb4 {[%clk 0:04:08.4]} 13. Qc4 {[%clk 0:02:41.5]} 13... b5 {[%clk
0:03:54.1]} 14. Qe2 {[%clk 0:02:35.1]} 14... g6 {[%clk 0:03:51.1]} 15. c3 {[%clk
0:02:27.7]} 15... Nd5 {[%clk 0:03:40.6]} 16. Qxb5 {[%clk 0:02:23.8]} 16... Ng7
{[%clk 0:03:36.2]} 17. Qa6 {[%clk 0:02:10.2]} 17... Rd8 {[%clk 0:03:26.3]} 18.
Bc4 {[%clk 0:02:03.8]} 18... Nb6 {[%clk 0:03:24.9]} 19. Bb3 {[%clk 0:01:51.8]}
19... Nf5 {[%clk 0:03:21.3]} 20. O-O {[%clk 0:01:48.7]} 20... h5 {[%clk
0:03:18.8]} 21. Rfd1 {[%clk 0:01:41.7]} 21... Kg7 {[%clk 0:03:14.5]} 22. Rxd8
{[%clk 0:01:38.4]} 22... Rxd8 {[%clk 0:03:14.4]} 23. Rd1 {[%clk 0:01:37.2]}
23... c4 {[%clk 0:03:08.4]} 24. Rxd8 {[%clk 0:01:31.9]} 24... Qxd8 {[%clk
0:03:08.3]} 25. Bc2 {[%clk 0:01:27.2]} 25... Ne7 {[%clk 0:02:37.1]} 26. Qxa7
{[%clk 0:01:23.4]} 26... Nc6 {[%clk 0:02:33.6]} 27. Qa3 {[%clk 0:01:08.5]} 27...
Nxe5 {[%clk 0:02:25.4]} 28. Nd4 {[%clk 0:00:37.6]} 28... Nd5 {[%clk 0:02:16.2]}
29. Qc5 {[%clk 0:00:36.1]} 29... Nd3 {[%clk 0:02:10.1]} 30. Bxd3 {[%clk
0:00:34.5]} 30... cxd3 {[%clk 0:02:10]} 31. Kf1 {[%clk 0:00:30.1]} 31... Qg5
{[%clk 0:01:57.5]} 32. g3 {[%clk 0:00:27.2]} 32... Nxe3+ {[%clk 0:01:56.4]} 33.
fxe3 {[%clk 0:00:25.7]} 33... Qxc5 {[%clk 0:01:56.3]} 34. Ke1 {[%clk 0:00:21.5]}
34... Qe7 {[%clk 0:01:47.5]} 35. Kd2 {[%clk 0:00:20]} 35... Qe4 {[%clk
0:01:45.1]} 36. h3 {[%clk 0:00:17.1]} 36... Qg2+ {[%clk 0:01:43.5]} 37. Kxd3
{[%clk 0:00:16.1]} 37... Qxb2 {[%clk 0:01:42.7]} 38. e4 {[%clk 0:00:14.1]} 38...
Qxa2 {[%clk 0:01:41.6]} 39. e5 {[%clk 0:00:13.2]} 39... Qg2 {[%clk 0:01:39.1]}
40. e6 {[%clk 0:00:11.4]} 40... Qxg3+ {[%clk 0:01:37.8]} 41. Kc4 {[%clk
0:00:10]} 41... Qxh3 {[%clk 0:01:28.7]} 42. Kd5 {[%clk 0:00:08.4]} 42... fxe6+
{[%clk 0:01:26.2]} 43. Nxe6+ {[%clk 0:00:07.7]} 43... Kf6 {[%clk 0:01:25.2]} 44.
Nf4 {[%clk 0:00:06.6]} 44... Kf5 {[%clk 0:01:24.7]} 45. Ne6 {[%clk 0:00:05.6]}
45... Kg4 {[%clk 0:01:24.6]} 46. Nf4 {[%clk 0:00:04.5]} 46... Kxf4 {[%clk
0:01:22.7]} 47. c4 {[%clk 0:00:03.5]} 47... Qd3+ {[%clk 0:01:22.3]} 48. Kc5
{[%clk 0:00:02.1]} 48... Ke5 {[%clk 0:01:22.2]} 49. Kb4 {[%clk 0:00:01.4]} 49...
Qd4 {[%clk 0:01:21.9]} 50. Ka5 {[%clk 0:00:00.6]} 50... Kd6 {[%clk 0:01:21.8]}
0-1

[Event "Live Chess"]
[Site "Chess.com"]
[Date "2023.05.21"]
[Round "-"]
[White "FlyingChessKestrel13"]
[Black "Hussamalhaidar"]
[Result "1-0"]
[WhiteElo "2060"]
[BlackElo "1155"]
[TimeControl "300"]
[EndTime "8:17:05 PDT"]
[Termination "FlyingChessKestrel13 won by resignation"]

1. e4 {[%clk 0:04:58.1]} 1... d6 {[%clk 0:04:55.1]} 2. d4 {[%clk 0:04:53.8]}
2... e5 {[%clk 0:04:53.3]} 3. Nf3 {[%clk 0:04:48.4]} 3... exd4 {[%clk
0:04:44.1]} 4. Nxd4 {[%clk 0:04:47.2]} 4... Nf6 {[%clk 0:04:39.7]} 5. Nc3 {[%clk
0:04:46.2]} 5... c5 {[%clk 0:04:35.2]} 6. Ndb5 {[%clk 0:04:42.4]} 6... Qb6
{[%clk 0:04:21.6]} 7. Bf4 {[%clk 0:04:38.9]} 7... a6 {[%clk 0:04:04.2]} 8. Nxd6+
{[%clk 0:04:32.7]} 8... Bxd6 {[%clk 0:03:28.1]} 9. Bxd6 {[%clk 0:04:12.5]} 9...
Be6 {[%clk 0:03:23.7]} 10. Rb1 {[%clk 0:04:05.4]} 10... Nc6 {[%clk 0:03:14.4]}
11. e5 {[%clk 0:04:02.5]} 11... Nd7 {[%clk 0:03:04.4]} 12. f4 {[%clk 0:03:50.2]}
12... f6 {[%clk 0:02:57.2]} 13. Bd3 {[%clk 0:03:38]} 13... fxe5 {[%clk
0:02:47.9]} 14. fxe5 {[%clk 0:03:35.9]} 14... Ncxe5 {[%clk 0:02:41]} 15. Bxe5
{[%clk 0:03:34.6]} 15... Nxe5 {[%clk 0:02:38.7]} 16. Qh5+ {[%clk 0:03:33.9]}
16... Ng6 {[%clk 0:02:33]} 17. Bxg6+ {[%clk 0:03:31.9]} 17... Ke7 {[%clk
0:01:54]} 18. Be4 {[%clk 0:03:26.2]} 18... Rhf8 {[%clk 0:01:39.4]} 19. Qe5
{[%clk 0:03:17.5]} 19... Rad8 {[%clk 0:01:31.4]} 20. Rd1 {[%clk 0:03:13.7]}
20... c4 {[%clk 0:01:24.1]} 21. Qg5+ {[%clk 0:02:59.1]} 21... Rf6 {[%clk
0:01:13.4]} 22. Rf1 {[%clk 0:02:52.4]} 22... h6 {[%clk 0:01:07]} 23. Qxg7+
{[%clk 0:02:51]} 23... Bf7 {[%clk 0:00:54.2]} 24. Qxf6+ {[%clk 0:02:49]} 24...
Qxf6 {[%clk 0:00:49]} 25. Rxf6 {[%clk 0:02:48.5]} 25... Kxf6 {[%clk 0:00:47.2]}
26. Rxd8 {[%clk 0:02:46.6]} 1-0

[Event "Live Chess"]
[Site "Chess.com"]
[Date "2023.05.21"]
[Round "-"]
[White "AyannaTang"]
[Black "NotHarryV"]
[Result "0-1"]
[WhiteElo "230"]
[BlackElo "1511"]
[TimeControl "300"]
[EndTime "8:17:07 PDT"]
[Termination "NotHarryV won by checkmate"]

1. e4 {[%clk 0:04:58.3]} 1... c6 {[%clk 0:04:56.7]} 2. d4 {[%clk 0:04:49.4]}
2... d5 {[%clk 0:04:55.8]} 3. Bf4 {[%clk 0:04:37.2]} 3... dxe4 {[%clk
0:04:44.2]} 4. f3 {[%clk 0:04:35.2]} 4... exf3 {[%clk 0:04:42]} 5. Qxf3 {[%clk
0:04:32.2]} 5... Qxd4 {[%clk 0:04:31.4]} 6. Ne2 {[%clk 0:04:27.7]} 6... Qxb2
{[%clk 0:04:23.6]} 7. Nd2 {[%clk 0:04:17]} 7... Qxa1+ {[%clk 0:04:21.3]} 8. Kf2
{[%clk 0:04:12.7]} 8... e6 {[%clk 0:04:10.4]} 9. h4 {[%clk 0:04:07.7]} 9... Bc5+
{[%clk 0:04:02.6]} 10. Kg3 {[%clk 0:04:03.8]} 10... Nf6 {[%clk 0:03:53.1]} 11.
Rh3 {[%clk 0:03:58.7]} 11... e5 {[%clk 0:03:42.9]} 12. Bxe5 {[%clk 0:03:53.1]}
12... Qxe5+ {[%clk 0:03:41.5]} 13. Nf4 {[%clk 0:03:43.6]} 13... Bxh3 {[%clk
0:03:21.4]} 14. Kxh3 {[%clk 0:03:41.4]} 14... Qf5+ {[%clk 0:03:12.8]} 15. g4
{[%clk 0:03:35.7]} 15... Qxg4+ {[%clk 0:03:09.2]} 16. Qxg4 {[%clk 0:03:33.1]}
16... Nxg4 {[%clk 0:03:09.1]} 17. Kxg4 {[%clk 0:03:31.9]} 17... Be3 {[%clk
0:03:05.8]} 18. Nh5 {[%clk 0:02:50.2]} 18... O-O {[%clk 0:03:00]} 19. Ne4 {[%clk
0:02:43.8]} 19... f5+ {[%clk 0:02:56.8]} 20. Kf3 {[%clk 0:02:37.9]} 20... fxe4+
{[%clk 0:02:54.9]} 21. Kxe3 {[%clk 0:02:36.5]} 21... Rxf1 {[%clk 0:02:54]} 22.
Kxe4 {[%clk 0:02:34.9]} 22... Rf2 {[%clk 0:02:49.7]} 23. Ng3 {[%clk 0:02:31.9]}
23... Rxc2 {[%clk 0:02:48.7]} 24. Nf5 {[%clk 0:02:30.2]} 24... Rxa2 {[%clk
0:02:46.6]} 25. Kf4 {[%clk 0:02:28.2]} 25... Rf2+ {[%clk 0:02:44.4]} 26. Kg5
{[%clk 0:02:26.3]} 26... Rxf5+ {[%clk 0:02:44.3]} 27. Kxf5 {[%clk 0:02:25]}
27... Nd7 {[%clk 0:02:40.8]} 28. Kg4 {[%clk 0:02:23]} 28... Nf6+ {[%clk
0:02:40.1]} 29. Kg5 {[%clk 0:02:21.3]} 29... Rd8 {[%clk 0:02:39.6]} 30. h5
{[%clk 0:02:19.8]} 30... Nxh5 {[%clk 0:02:36.9]} 31. Kxh5 {[%clk 0:02:17.9]}
31... a5 {[%clk 0:02:36.8]} 32. Kg4 {[%clk 0:02:16.3]} 32... a4 {[%clk
0:02:36.4]} 33. Kf3 {[%clk 0:02:15.5]} 33... a3 {[%clk 0:02:36.3]} 34. Ke2
{[%clk 0:02:14.5]} 34... a2 {[%clk 0:02:36.2]} 35. Ke3 {[%clk 0:02:12.5]} 35...
a1=Q {[%clk 0:02:36.1]} 36. Ke4 {[%clk 0:02:11.1]} 36... Ra8 {[%clk 0:02:32.4]}
37. Kd3 {[%clk 0:02:09.7]} 37... Ra4 {[%clk 0:02:28.5]} 38. Ke3 {[%clk
0:02:08.3]} 38... Qa3+ {[%clk 0:02:27.8]} 39. Kd2 {[%clk 0:02:06.9]} 39... Rb4
{[%clk 0:02:27.7]} 40. Kc2 {[%clk 0:02:05.5]} 40... Rb2+ {[%clk 0:02:27.6]} 41.
Kd1 {[%clk 0:02:04.1]} 41... Qa1# {[%clk 0:02:27.5]} 0-1

[Event "Live Chess"]
[Site "Chess.com"]
[Date "2023.05.21"]
[Round "-"]
[White "Long1968"]
[Black "f4nomore"]
[Result "1/2-1/2"]
[WhiteElo "953"]
[BlackElo "1393"]
[TimeControl "300"]
[EndTime "8:17:09 PDT"]
[Termination "Game drawn - timeout vs insufficient material"]

1. e4 {[%clk 0:04:57.6]} 1... g6 {[%clk 0:04:59.9]} 2. d4 {[%clk 0:04:54.4]}
2... Bg7 {[%clk 0:04:59.8]} 3. Nc3 {[%clk 0:04:51.6]} 3... d6 {[%clk 0:04:59.7]}
4. Bc4 {[%clk 0:04:48.2]} 4... e6 {[%clk 0:04:57.8]} 5. Nf3 {[%clk 0:04:39.5]}
5... Bd7 {[%clk 0:04:56.5]} 6. O-O {[%clk 0:04:32.6]} 6... Ne7 {[%clk
0:04:55.2]} 7. Bg5 {[%clk 0:04:26.5]} 7... O-O {[%clk 0:04:53.7]} 8. Qd2 {[%clk
0:04:18.4]} 8... Qe8 {[%clk 0:04:52.4]} 9. Bh6 {[%clk 0:04:13.6]} 9... d5 {[%clk
0:04:49.2]} 10. exd5 {[%clk 0:04:04.2]} 10... exd5 {[%clk 0:04:43.1]} 11. Nxd5
{[%clk 0:04:01.4]} 11... Nxd5 {[%clk 0:04:40.9]} 12. Bxd5 {[%clk 0:03:58]} 12...
Be6 {[%clk 0:04:37.1]} 13. Rfe1 {[%clk 0:03:48.7]} 13... c6 {[%clk 0:04:23.2]}
14. Bxe6 {[%clk 0:03:44.1]} 14... fxe6 {[%clk 0:04:20.1]} 15. Bxg7 {[%clk
0:03:37.3]} 15... Kxg7 {[%clk 0:04:17.4]} 16. Ng5 {[%clk 0:03:32.6]} 16... Rf6
{[%clk 0:04:06.6]} 17. Qc3 {[%clk 0:03:22.8]} 17... h6 {[%clk 0:03:59.1]} 18.
Nxe6+ {[%clk 0:02:59.4]} 18... Rxe6 {[%clk 0:03:50.8]} 19. d5+ {[%clk
0:02:51.4]} 19... Kh7 {[%clk 0:03:44.2]} 20. dxe6 {[%clk 0:02:40.8]} 20... Na6
{[%clk 0:03:42.2]} 21. Qf6 {[%clk 0:02:33.6]} 21... Nc5 {[%clk 0:03:35.6]} 22.
Qf7+ {[%clk 0:02:24.4]} 22... Qxf7 {[%clk 0:03:28.8]} 23. exf7 {[%clk
0:02:20.1]} 23... Kg7 {[%clk 0:03:26.4]} 24. Re7 {[%clk 0:02:16]} 24... Rf8
{[%clk 0:03:22]} 25. b4 {[%clk 0:02:00]} 25... Na6 {[%clk 0:03:03.2]} 26. Rxb7
{[%clk 0:01:54.3]} 26... Rxf7 {[%clk 0:03:01]} 27. Rxf7+ {[%clk 0:01:47.6]}
27... Kxf7 {[%clk 0:02:59.5]} 28. c3 {[%clk 0:01:41.7]} 28... Nc7 {[%clk
0:02:57.2]} 29. Rd1 {[%clk 0:01:35.4]} 29... Nb5 {[%clk 0:02:55.4]} 30. c4
{[%clk 0:01:28.1]} 30... Nc3 {[%clk 0:02:53]} 31. Rd7+ {[%clk 0:01:22.1]} 31...
Ke6 {[%clk 0:02:49.4]} 32. Rxa7 {[%clk 0:01:19.1]} 32... Kd6 {[%clk 0:02:44.7]}
33. Ra6 {[%clk 0:01:14.7]} 33... Ne2+ {[%clk 0:02:37.9]} 34. Kf1 {[%clk
0:01:11.2]} 34... Nd4 {[%clk 0:02:33.2]} 35. b5 {[%clk 0:01:02]} 35... g5 {[%clk
0:02:29]} 36. Rxc6+ {[%clk 0:00:56.9]} 36... Nxc6 {[%clk 0:02:26.8]} 37. bxc6
{[%clk 0:00:54.5]} 37... Kxc6 {[%clk 0:02:25.8]} 38. Ke2 {[%clk 0:00:52.4]}
38... Kc5 {[%clk 0:02:24.9]} 39. Kd3 {[%clk 0:00:50.9]} 39... h5 {[%clk
0:02:22.4]} 40. f3 {[%clk 0:00:47.9]} 40... g4 {[%clk 0:02:20.6]} 41. fxg4
{[%clk 0:00:45.2]} 41... hxg4 {[%clk 0:02:19.4]} 42. Ke4 {[%clk 0:00:42.6]}
42... Kxc4 {[%clk 0:02:17.2]} 43. Kf4 {[%clk 0:00:40.4]} 43... Kb4 {[%clk
0:02:16.3]} 44. Kxg4 {[%clk 0:00:38.2]} 44... Ka3 {[%clk 0:02:16.2]} 45. Kf5
{[%clk 0:00:36.3]} 45... Kxa2 {[%clk 0:02:16.1]} 46. g4 {[%clk 0:00:34.8]} 46...
Kb3 {[%clk 0:02:16]} 47. g5 {[%clk 0:00:33.3]} 47... Kc4 {[%clk 0:02:15.9]} 48.
g6 {[%clk 0:00:32]} 48... Kd5 {[%clk 0:02:15.2]} 49. g7 {[%clk 0:00:29.7]} 49...
Kd4 {[%clk 0:02:15.1]} 50. g8=Q {[%clk 0:00:27.1]} 50... Ke3 {[%clk 0:02:15]}
51. Qg4 {[%clk 0:00:24.7]} 51... Kf2 {[%clk 0:02:13]} 52. Ke4 {[%clk 0:00:22.9]}
52... Ke1 {[%clk 0:02:07.3]} 53. Ke3 {[%clk 0:00:19.5]} 53... Kf1 {[%clk
0:02:03.7]} 54. Qf3+ {[%clk 0:00:15.7]} 54... Kg1 {[%clk 0:02:01.3]} 55. Qf2+
{[%clk 0:00:13.2]} 55... Kh1 {[%clk 0:01:59.5]} 56. Qh4 {[%clk 0:00:09]} 56...
Kg2 {[%clk 0:01:56.6]} 57. Qg3+ {[%clk 0:00:06.2]} 57... Kh1 {[%clk 0:01:54.3]}
58. Qe1+ {[%clk 0:00:03.1]} 58... Kg2 {[%clk 0:01:52.6]} 59. Qf2+ {[%clk
0:00:00.8]} 59... Kh1 {[%clk 0:01:51.1]} 1/2-1/2

[Event "Live Chess"]
[Site "Chess.com"]
[Date "2023.05.21"]
[Round "-"]
[White "djw60"]
[Black "stevochess11"]
[Result "1-0"]
[WhiteElo "2167"]
[BlackElo "1664"]
[TimeControl "300"]
[EndTime "8:17:10 PDT"]
[Termination "djw60 won by resignation"]

1. Nf3 {[%clk 0:04:57.2]} 1... c5 {[%clk 0:04:55.8]} 2. e3 {[%clk 0:04:55.3]}
2... g6 {[%clk 0:04:54.3]} 3. d4 {[%clk 0:04:52.9]} 3... Bg7 {[%clk 0:04:51.6]}
4. c4 {[%clk 0:04:51.6]} 4... cxd4 {[%clk 0:04:47.9]} 5. Nxd4 {[%clk 0:04:49.1]}
5... d6 {[%clk 0:04:46.8]} 6. Nc3 {[%clk 0:04:47.7]} 6... Nc6 {[%clk 0:04:44.9]}
7. Be2 {[%clk 0:04:44.7]} 7... Nf6 {[%clk 0:04:43.8]} 8. O-O {[%clk 0:04:42.8]}
8... O-O {[%clk 0:04:41.8]} 9. b3 {[%clk 0:04:39.2]} 9... a6 {[%clk 0:04:31.6]}
10. Bb2 {[%clk 0:04:34.7]} 10... Bd7 {[%clk 0:04:28.6]} 11. Qd2 {[%clk
0:04:23.3]} 11... Rc8 {[%clk 0:04:25.2]} 12. Rfd1 {[%clk 0:04:21.4]} 12... Ne5
{[%clk 0:04:18.4]} 13. f4 {[%clk 0:04:17.5]} 13... Neg4 {[%clk 0:04:12.3]} 14.
h3 {[%clk 0:04:14.9]} 14... Nh6 {[%clk 0:04:09.7]} 15. g4 {[%clk 0:04:10.6]}
15... Ne8 {[%clk 0:04:04.1]} 16. Bf3 {[%clk 0:04:03.6]} 16... Bc6 {[%clk
0:03:59.3]} 17. Nd5 {[%clk 0:03:59.5]} 17... e6 {[%clk 0:03:47.2]} 18. Nxc6
{[%clk 0:03:55.8]} 18... bxc6 {[%clk 0:03:44.9]} 19. Bxg7 {[%clk 0:03:36.7]}
19... Kxg7 {[%clk 0:03:43.4]} 20. Qc3+ {[%clk 0:03:26.9]} 20... Kg8 {[%clk
0:03:34]} 21. Nb4 {[%clk 0:03:22.7]} 21... Qh4 {[%clk 0:03:31.3]} 22. Kg2 {[%clk
0:03:14.6]} 22... Nf6 {[%clk 0:03:14.8]} 23. Qe1 {[%clk 0:03:01.7]} 23... Qxe1
{[%clk 0:03:04.2]} 24. Rxe1 {[%clk 0:03:01.6]} 24... c5 {[%clk 0:02:53.3]} 25.
Nc6 {[%clk 0:02:57.5]} 25... Nd7 {[%clk 0:02:48]} 26. Ne7+ {[%clk 0:02:55.1]}
26... Kg7 {[%clk 0:02:43.5]} 27. Nxc8 {[%clk 0:02:53.9]} 27... Rxc8 {[%clk
0:02:43.4]} 28. Rad1 {[%clk 0:02:51.8]} 28... e5 {[%clk 0:02:33.8]} 29. Rxd6
{[%clk 0:02:47]} 29... exf4 {[%clk 0:02:32.3]} 30. Rxd7 {[%clk 0:02:44.6]} 1-0

[Event "Live Chess"]
[Site "Chess.com"]
[Date "2023.05.21"]
[Round "-"]
[White "DoYouLikeCurry"]
[Black "worldchessleaguelive"]
[Result "1/2-1/2"]
[WhiteElo "1455"]
[BlackElo "1367"]
[TimeControl "300"]
[EndTime "8:17:11 PDT"]
[Termination "Game drawn by repetition"]

1. e4 {[%clk 0:04:55.2]} 1... d5 {[%clk 0:04:58.3]} 2. exd5 {[%clk 0:04:52.7]}
2... Qxd5 {[%clk 0:04:56.5]} 3. Nc3 {[%clk 0:04:52]} 3... Qd8 {[%clk 0:04:55.1]}
4. Nf3 {[%clk 0:04:49.9]} 4... Nf6 {[%clk 0:04:53.5]} 5. d4 {[%clk 0:04:48.6]}
5... c6 {[%clk 0:04:52.1]} 6. Be2 {[%clk 0:04:45.2]} 6... Bf5 {[%clk 0:04:50.5]}
7. O-O {[%clk 0:04:43.5]} 7... e6 {[%clk 0:04:49.2]} 8. Bg5 {[%clk 0:04:39.5]}
8... Be7 {[%clk 0:04:47.7]} 9. Bxf6 {[%clk 0:04:38.1]} 9... Bxf6 {[%clk
0:04:46.8]} 10. Bd3 {[%clk 0:04:34.5]} 10... Bxd3 {[%clk 0:04:44.6]} 11. Qxd3
{[%clk 0:04:34.4]} 11... O-O {[%clk 0:04:43.5]} 12. h4 {[%clk 0:04:25.6]} 12...
Na6 {[%clk 0:04:42.4]} 13. Ne4 {[%clk 0:04:23.7]} 13... Nb4 {[%clk 0:04:39.9]}
14. Qc3 {[%clk 0:04:19.2]} 14... Nd5 {[%clk 0:04:38.6]} 15. Qd3 {[%clk
0:04:15.4]} 15... b5 {[%clk 0:04:30.5]} 16. Nxf6+ {[%clk 0:04:13.3]} 16... Qxf6
{[%clk 0:04:27.5]} 17. Rad1 {[%clk 0:04:05.6]} 17... Rad8 {[%clk 0:04:26.1]} 18.
Ne5 {[%clk 0:04:03.3]} 18... Nb4 {[%clk 0:04:18.5]} 19. Qb3 {[%clk 0:03:55.5]}
19... a5 {[%clk 0:04:14.5]} 20. a3 {[%clk 0:03:50.9]} 20... Nd5 {[%clk
0:04:10.7]} 21. Nxc6 {[%clk 0:03:48.4]} 21... Rc8 {[%clk 0:04:09]} 22. Ne5
{[%clk 0:03:39.9]} 22... Qxh4 {[%clk 0:04:02]} 23. c3 {[%clk 0:03:33.2]} 23...
Rb8 {[%clk 0:03:44.3]} 24. Nd7 {[%clk 0:03:27.3]} 24... Rb7 {[%clk 0:03:40]} 25.
Nxf8 {[%clk 0:03:26.2]} 25... Kxf8 {[%clk 0:03:39.1]} 26. Rfe1 {[%clk 0:03:20]}
26... Qg5 {[%clk 0:03:33.1]} 27. Rd3 {[%clk 0:03:14.8]} 27... Nf4 {[%clk
0:03:31.5]} 28. Rg3 {[%clk 0:03:11.5]} 28... Qh5 {[%clk 0:03:27.2]} 29. Re4
{[%clk 0:03:00.5]} 29... Ne2+ {[%clk 0:03:24.9]} 30. Rxe2 {[%clk 0:02:57.5]}
30... Qxe2 {[%clk 0:03:24.2]} 31. Kh2 {[%clk 0:02:56.7]} 31... Qh5+ {[%clk
0:03:20]} 32. Kg1 {[%clk 0:02:55.4]} 32... g6 {[%clk 0:03:08.1]} 33. Rh3 {[%clk
0:02:49.2]} 33... Qg5 {[%clk 0:02:56.9]} 34. Rxh7 {[%clk 0:02:46.3]} 34... Kg8
{[%clk 0:02:56.1]} 35. Rh3 {[%clk 0:02:39.3]} 35... Qc1+ {[%clk 0:02:52.3]} 36.
Kh2 {[%clk 0:02:35.4]} 36... Qf4+ {[%clk 0:02:51.3]} 37. Kg1 {[%clk 0:02:27.5]}
37... Qc1+ {[%clk 0:02:50.3]} 38. Kh2 {[%clk 0:02:24.4]} 38... Qf4+ {[%clk
0:02:49.4]} 39. Kg1 {[%clk 0:02:19.6]} 39... Qc1+ {[%clk 0:02:48.2]} 1/2-1/2

[Event "Live Chess"]
[Site "Chess.com"]
[Date "2023.05.21"]
[Round "-"]
[White "Daniel_Gliddon_FA"]
[Black "domrobson"]
[Result "0-1"]
[WhiteElo "1221"]
[BlackElo "1781"]
[TimeControl "300"]
[EndTime "8:17:12 PDT"]
[Termination "domrobson won by resignation"]

1. e4 {[%clk 0:04:48.1]} 1... e5 {[%clk 0:04:58.4]} 2. d4 {[%clk 0:04:46.4]}
2... exd4 {[%clk 0:04:56.8]} 3. c3 {[%clk 0:04:44.6]} 3... d5 {[%clk 0:04:55]}
4. Qxd4 {[%clk 0:04:35.9]} 4... Nf6 {[%clk 0:04:53.2]} 5. e5 {[%clk 0:04:32.6]}
5... Nc6 {[%clk 0:04:50.2]} 6. Qf4 {[%clk 0:04:26.9]} 6... Nd7 {[%clk
0:04:45.2]} 7. Nf3 {[%clk 0:04:18]} 7... Qe7 {[%clk 0:04:42.5]} 8. Be2 {[%clk
0:04:03.4]} 8... Ncxe5 {[%clk 0:04:40.7]} 9. O-O {[%clk 0:04:01.6]} 9... Qf6
{[%clk 0:04:29.4]} 10. Nxe5 {[%clk 0:03:56]} 10... Qxe5 {[%clk 0:04:24.3]} 11.
Qd2 {[%clk 0:03:48.6]} 11... Bd6 {[%clk 0:04:20.9]} 12. f4 {[%clk 0:03:43.9]}
12... Bc5+ {[%clk 0:04:12.8]} 13. Kh1 {[%clk 0:03:40.8]} 13... Qd6 {[%clk
0:04:12]} 14. Bd3 {[%clk 0:03:36.4]} 14... O-O {[%clk 0:04:10.3]} 15. b4 {[%clk
0:03:21.1]} 15... Bb6 {[%clk 0:04:08.4]} 16. Bb2 {[%clk 0:03:18.8]} 16... Nf6
{[%clk 0:04:06]} 17. Qe2 {[%clk 0:03:06.9]} 17... Re8 {[%clk 0:04:03.1]} 18. Qf3
{[%clk 0:03:03.8]} 18... Bg4 {[%clk 0:04:01.1]} 19. Qg3 {[%clk 0:02:59]} 19...
h5 {[%clk 0:03:57.1]} 20. h3 {[%clk 0:02:55.1]} 20... Bd7 {[%clk 0:03:43.5]} 21.
Qg5 {[%clk 0:02:46.8]} 21... Re3 {[%clk 0:03:37]} 22. Bc2 {[%clk 0:02:37.7]}
22... Re2 {[%clk 0:03:25.1]} 23. Na3 {[%clk 0:02:26.6]} 23... Rae8 {[%clk
0:03:17]} 24. c4 {[%clk 0:02:23.1]} 24... dxc4 {[%clk 0:02:55.3]} 25. Nxc4
{[%clk 0:02:20.2]} 25... Qc6 {[%clk 0:02:46.9]} 26. Nxb6 {[%clk 0:02:07.4]}
26... axb6 {[%clk 0:02:44.7]} 27. Bxf6 {[%clk 0:01:57.5]} 27... Qxf6 {[%clk
0:02:43.1]} 28. Qxf6 {[%clk 0:01:56.3]} 28... gxf6 {[%clk 0:02:41.4]} 29. Bb3
{[%clk 0:01:49.6]} 29... Bc6 {[%clk 0:02:39.4]} 30. b5 {[%clk 0:01:33.8]} 30...
Bxg2+ {[%clk 0:02:36.8]} 0-1

[Event "Live Chess"]
[Site "Chess.com"]
[Date "2023.05.21"]
[Round "-"]
[White "EdenHazard8"]
[Black "Crowded_House"]
[Result "1-0"]
[WhiteElo "1927"]
[BlackElo "1613"]
[TimeControl "300"]
[EndTime "8:17:21 PDT"]
[Termination "EdenHazard8 won by checkmate"]

1. e4 {[%clk 0:04:59.1]} 1... e6 {[%clk 0:04:59]} 2. d4 {[%clk 0:04:58.2]} 2...
d5 {[%clk 0:04:57.3]} 3. Nd2 {[%clk 0:04:57.8]} 3... dxe4 {[%clk 0:04:52.6]} 4.
Nxe4 {[%clk 0:04:57.7]} 4... Nf6 {[%clk 0:04:51.8]} 5. Nxf6+ {[%clk 0:04:55.6]}
5... Qxf6 {[%clk 0:04:50.3]} 6. Nf3 {[%clk 0:04:54.9]} 6... h6 {[%clk 0:04:49]}
7. Bd3 {[%clk 0:04:54]} 7... Bd6 {[%clk 0:04:46.5]} 8. c3 {[%clk 0:04:53.1]}
8... O-O {[%clk 0:04:45]} 9. Be3 {[%clk 0:04:52]} 9... b6 {[%clk 0:04:40.7]} 10.
Be4 {[%clk 0:04:51.1]} 10... c6 {[%clk 0:04:37.3]} 11. Bc2 {[%clk 0:04:49.9]}
11... Bb7 {[%clk 0:04:35.9]} 12. Qd3 {[%clk 0:04:49.4]} 12... g6 {[%clk
0:04:31.2]} 13. Bxh6 {[%clk 0:04:48]} 13... Re8 {[%clk 0:04:26.9]} 14. h4 {[%clk
0:04:44.2]} 14... c5 {[%clk 0:04:17.5]} 15. Bg5 {[%clk 0:04:40.1]} 15... Qg7
{[%clk 0:04:05.9]} 16. h5 {[%clk 0:04:37.9]} 16... Be7 {[%clk 0:04:03.2]} 17.
Bxe7 {[%clk 0:04:35.5]} 17... Rxe7 {[%clk 0:04:01.8]} 18. hxg6 {[%clk 0:04:35]}
18... fxg6 {[%clk 0:03:58.8]} 19. Ne5 {[%clk 0:04:32.3]} 19... Bxg2 {[%clk
0:03:53.2]} 20. Rg1 {[%clk 0:04:31.3]} 20... Kf8 {[%clk 0:03:30.9]} 21. Nxg6+
{[%clk 0:04:29.4]} 21... Ke8 {[%clk 0:03:23.8]} 22. Rxg2 {[%clk 0:04:28.7]}
22... Qf6 {[%clk 0:03:20.8]} 23. Nxe7 {[%clk 0:04:27.1]} 23... Kxe7 {[%clk
0:03:20.5]} 24. Qh7+ {[%clk 0:04:25.8]} 24... Kd6 {[%clk 0:03:18.9]} 25. Rg7
{[%clk 0:04:23.9]} 25... cxd4 {[%clk 0:03:05.7]} 26. cxd4 {[%clk 0:04:21.7]}
26... Qxd4 {[%clk 0:03:02.8]} 27. Rd1 {[%clk 0:04:19.7]} 27... Qxd1+ {[%clk
0:03:00.2]} 28. Bxd1 {[%clk 0:04:18.9]} 28... Nc6 {[%clk 0:02:59.4]} 29. Qd3+
{[%clk 0:04:18.5]} 29... Ke5 {[%clk 0:02:57]} 30. f4+ {[%clk 0:04:17]} 30... Kf6
{[%clk 0:02:55.5]} 31. Qg6# {[%clk 0:04:15.4]} 1-0